[Event "*** Biggest EVER Titled Tuesday"]
[Site "Chess.com"]
[Date "2018.04.17"]
[Round "3"]
[White "catalin009"]
[Black "pKiLz5Rn9b"]
[Result "0-1"]
[WhiteElo "2412"]
[BlackElo "2617"]
[TimeControl "180+2"]
[EndTime "13:35:40 PDT"]
[Termination "pKiLz5Rn9b won by resignation"]

1. e4 {[%clk 0:03:01.9]} 1... e6 {[%clk 0:02:47.9]} 2. d4 {[%clk 0:02:59.3]}
2... d5 {[%clk 0:02:48.2]} 3. exd5 {[%clk 0:03:00.5]} 3... exd5 {[%clk
0:02:47.6]} 4. Nc3 {[%clk 0:03:01.6]} 4... Nf6 {[%clk 0:02:48.2]} 5. Bd3 {[%clk
0:02:59.9]} 5... Bb4 {[%clk 0:02:47.7]} 6. Bg5 {[%clk 0:02:59.9]} 6... h6 {[%clk
0:02:39.7]} 7. Bh4 {[%clk 0:02:59.4]} 7... Be6 {[%clk 0:02:37.3]} 8. Ne2 {[%clk
0:02:54.9]} 8... Nbd7 {[%clk 0:02:24.5]} 9. O-O {[%clk 0:02:38.7]} 9... O-O
{[%clk 0:02:23]} 10. Nf4 {[%clk 0:02:36.9]} 10... c6 {[%clk 0:02:07.2]} 11. Nce2
{[%clk 0:02:27.3]} 11... Bd6 {[%clk 0:02:01.2]} 12. c3 {[%clk 0:01:55.9]} 12...
Qc7 {[%clk 0:02:00.7]} 13. Bg3 {[%clk 0:01:55.5]} 13... Rae8 {[%clk 0:01:58.7]}
14. Nxe6 {[%clk 0:01:35.2]} 14... Rxe6 {[%clk 0:01:49.6]} 15. Bxd6 {[%clk
0:01:32.2]} 15... Qxd6 {[%clk 0:01:49.9]} 16. Ng3 {[%clk 0:01:32.4]} 16... g6
{[%clk 0:01:47.9]} 17. Qd2 {[%clk 0:01:29]} 17... Kg7 {[%clk 0:01:46.1]} 18. f4
{[%clk 0:01:25.5]} 18... Re7 {[%clk 0:01:46.9]} 19. f5 {[%clk 0:01:26.3]} 19...
g5 {[%clk 0:01:48.2]} 20. Rf3 {[%clk 0:01:09.5]} 20... Rfe8 {[%clk 0:01:48.8]}
21. Raf1 {[%clk 0:01:00.4]} 21... c5 {[%clk 0:01:34.6]} 22. h4 {[%clk
0:00:26.8]} 22... g4 {[%clk 0:01:34.6]} 23. Rf4 {[%clk 0:00:27.7]} 23... Re3
{[%clk 0:01:35.3]} 24. Nh1 {[%clk 0:00:18]} 24... c4 {[%clk 0:01:30]} 25. Bb1
{[%clk 0:00:16.6]} 25... Re2 {[%clk 0:01:27.7]} 26. Qd1 {[%clk 0:00:17.6]} 26...
Qxf4 {[%clk 0:00:34.1]} 27. Rxf4 {[%clk 0:00:13.6]} 27... Re1+ {[%clk
0:00:35.7]} 28. Qxe1 {[%clk 0:00:12.4]} 28... Rxe1+ {[%clk 0:00:37.6]} 29. Rf1
{[%clk 0:00:13.9]} 29... Re2 {[%clk 0:00:38.6]} 30. Rf2 {[%clk 0:00:14.6]} 30...
Re3 {[%clk 0:00:40]} 31. Kh2 {[%clk 0:00:13.5]} 31... Nh5 {[%clk 0:00:38.7]} 32.
Rd2 {[%clk 0:00:09.2]} 32... g3+ {[%clk 0:00:38.3]} 33. Kh3 {[%clk 0:00:09.8]}
33... Ndf6 {[%clk 0:00:36.8]} 34. Nxg3 {[%clk 0:00:03.5]} 34... Rxg3+ {[%clk
0:00:30.6]} 35. Kh2 {[%clk 0:00:04.6]} 35... Ng4+ {[%clk 0:00:32.1]} 36. Kg1
{[%clk 0:00:04.7]} 36... Nf4 {[%clk 0:00:33.7]} 37. b3 {[%clk 0:00:05]} 37...
cxb3 {[%clk 0:00:34.2]} 38. axb3 {[%clk 0:00:06.1]} 38... Rxc3 {[%clk
0:00:35.8]} 0-1

[Event "*** Biggest EVER Titled Tuesday"]
[Site "Chess.com"]
[Date "2018.04.17"]
[Round "3"]
[White "Aikiigm"]
[Black "milovanratkovic"]
[Result "1-0"]
[WhiteElo "2455"]
[BlackElo "2463"]
[TimeControl "180+2"]
[EndTime "13:35:43 PDT"]
[Termination "Aikiigm won on time"]

1. d4 {[%clk 0:02:16.1]} 1... d5 {[%clk 0:02:58.3]} 2. Bf4 {[%clk 0:02:18]} 2...
c5 {[%clk 0:02:56.8]} 3. c3 {[%clk 0:02:18.1]} 3... Nc6 {[%clk 0:02:55.9]} 4. e3
{[%clk 0:02:18.8]} 4... Qb6 {[%clk 0:02:50.7]} 5. Qb3 {[%clk 0:02:18.9]} 5... c4
{[%clk 0:02:50.7]} 6. Qc2 {[%clk 0:02:20.1]} 6... Bf5 {[%clk 0:02:46.9]} 7. Qc1
{[%clk 0:02:21]} 7... e6 {[%clk 0:02:47.5]} 8. Nd2 {[%clk 0:02:22.9]} 8... h6
{[%clk 0:02:47.5]} 9. Ngf3 {[%clk 0:02:22.9]} 9... Qd8 {[%clk 0:02:41.1]} 10.
Be2 {[%clk 0:02:23.6]} 10... Nf6 {[%clk 0:02:39.6]} 11. O-O {[%clk 0:02:24.4]}
11... Bd6 {[%clk 0:02:38.3]} 12. Bd1 {[%clk 0:02:19.5]} 12... O-O {[%clk
0:02:26.7]} 13. Bc2 {[%clk 0:02:19.4]} 13... b5 {[%clk 0:02:26.3]} 14. Bxf5
{[%clk 0:02:18.3]} 14... exf5 {[%clk 0:02:26.8]} 15. Qc2 {[%clk 0:02:19.1]}
15... Ne4 {[%clk 0:02:24.9]} 16. Ne5 {[%clk 0:02:09.4]} 16... Bxe5 {[%clk
0:02:23.9]} 17. Bxe5 {[%clk 0:02:08.9]} 17... Qe7 {[%clk 0:02:12.7]} 18. Bg3
{[%clk 0:02:09.1]} 18... Nd8 {[%clk 0:02:02.8]} 19. Nxe4 {[%clk 0:02:10]} 19...
fxe4 {[%clk 0:02:02.9]} 20. a4 {[%clk 0:02:08.9]} 20... b4 {[%clk 0:02:01.7]}
21. b3 {[%clk 0:02:10.2]} 21... Rc8 {[%clk 0:01:57.6]} 22. cxb4 {[%clk
0:02:08.2]} 22... Qxb4 {[%clk 0:01:59.5]} 23. bxc4 {[%clk 0:02:09.1]} 23... Rxc4
{[%clk 0:01:59.2]} 24. Qb1 {[%clk 0:02:10.2]} 24... Nc6 {[%clk 0:01:56.2]} 25.
Rc1 {[%clk 0:02:06.3]} 25... Rc8 {[%clk 0:01:37]} 26. Rxc4 {[%clk 0:02:04]}
26... Qxc4 {[%clk 0:01:38]} 27. h3 {[%clk 0:01:58.8]} 27... Nb4 {[%clk
0:01:38.2]} 28. a5 {[%clk 0:01:54.9]} 28... a6 {[%clk 0:01:13.6]} 29. Kh2 {[%clk
0:01:53.2]} 29... Nc2 {[%clk 0:01:11.9]} 30. Ra2 {[%clk 0:01:49.7]} 30... Qc3
{[%clk 0:00:48.7]} 31. Rb2 {[%clk 0:01:39.5]} 31... Qd2 {[%clk 0:00:44.2]} 32.
Qf1 {[%clk 0:01:29.6]} 32... Qxa5 {[%clk 0:00:39.9]} 33. Qe2 {[%clk 0:01:19.8]}
33... Qc3 {[%clk 0:00:40.4]} 34. Qxa6 {[%clk 0:01:19.3]} 34... Ne1 {[%clk
0:00:32.5]} 35. Rb1 {[%clk 0:01:13.9]} 35... Nd3 {[%clk 0:00:32.8]} 36. Qb7
{[%clk 0:01:07.8]} 36... Qc2 {[%clk 0:00:33]} 37. Ra1 {[%clk 0:00:55.4]} 37...
Re8 {[%clk 0:00:17.3]} 38. Qxd5 {[%clk 0:00:46.9]} 38... Nxf2 {[%clk 0:00:09.1]}
39. Ra2 {[%clk 0:00:47.2]} 39... Qc1 {[%clk 0:00:04.2]} 40. Rxf2 {[%clk
0:00:46.9]} 1-0

[Event "*** Biggest EVER Titled Tuesday"]
[Site "Chess.com"]
[Date "2018.04.17"]
[Round "3"]
[White "SabinoBrunello"]
[Black "OparinGrigoriy"]
[Result "1/2-1/2"]
[WhiteElo "2684"]
[BlackElo "2856"]
[TimeControl "180+2"]
[EndTime "13:35:47 PDT"]
[Termination "Game drawn by agreement"]

1. c4 {[%clk 0:03:01.9]} 1... e6 {[%clk 0:03:00.3]} 2. b3 {[%clk 0:03:02.8]}
2... d5 {[%clk 0:03:01.1]} 3. Bb2 {[%clk 0:03:02.6]} 3... Nf6 {[%clk 0:03:02.5]}
4. e3 {[%clk 0:03:03.5]} 4... Be7 {[%clk 0:03:02.4]} 5. Nf3 {[%clk 0:03:04.1]}
5... O-O {[%clk 0:03:01.5]} 6. Nc3 {[%clk 0:03:02.4]} 6... c5 {[%clk 0:03:02.1]}
7. d4 {[%clk 0:02:57.8]} 7... b6 {[%clk 0:03:01.9]} 8. cxd5 {[%clk 0:02:56.5]}
8... exd5 {[%clk 0:03:02.2]} 9. Be2 {[%clk 0:02:49.2]} 9... Bb7 {[%clk 0:03:02]}
10. O-O {[%clk 0:02:49.6]} 10... Nbd7 {[%clk 0:03:03.1]} 11. Rc1 {[%clk
0:02:51.2]} 11... Re8 {[%clk 0:03:01.1]} 12. Ne5 {[%clk 0:02:52.1]} 12... a6
{[%clk 0:02:55.4]} 13. f4 {[%clk 0:02:45.8]} 13... Rc8 {[%clk 0:02:55.7]} 14.
Bf3 {[%clk 0:02:34.2]} 14... Bd6 {[%clk 0:02:48.4]} 15. g4 {[%clk 0:02:23.5]}
15... Ne4 {[%clk 0:02:40.6]} 16. Nxe4 {[%clk 0:01:48.9]} 16... dxe4 {[%clk
0:02:42.5]} 17. Bg2 {[%clk 0:01:49.6]} 17... cxd4 {[%clk 0:02:38.5]} 18. Nxd7
{[%clk 0:01:50.1]} 18... Rxc1 {[%clk 0:02:32.8]} 19. Bxc1 {[%clk 0:01:46.7]}
19... Qxd7 {[%clk 0:02:20.8]} 20. Qxd4 {[%clk 0:01:46.6]} 20... Qc7 {[%clk
0:02:07.9]} 21. Bb2 {[%clk 0:01:43]} 21... Bf8 {[%clk 0:02:06]} 22. Rc1 {[%clk
0:01:41.4]} 22... Qd8 {[%clk 0:02:05.9]} 23. f5 {[%clk 0:01:35.8]} 23... b5
{[%clk 0:02:03.2]} 24. Qxd8 {[%clk 0:01:27.2]} 24... Rxd8 {[%clk 0:02:04.1]} 25.
Bd4 {[%clk 0:01:28.7]} 25... Bd6 {[%clk 0:01:51.5]} 26. h4 {[%clk 0:01:17.7]}
26... Kf8 {[%clk 0:01:49.8]} 27. Kf2 {[%clk 0:01:18.1]} 27... f6 {[%clk
0:01:48.3]} 28. Bf1 {[%clk 0:01:17.5]} 28... Rc8 {[%clk 0:01:40.3]} 29. Rxc8+
{[%clk 0:01:15.8]} 29... Bxc8 {[%clk 0:01:42.2]} 30. h5 {[%clk 0:01:17.2]} 30...
h6 {[%clk 0:01:39.2]} 31. a4 {[%clk 0:01:16.3]} 31... Bd7 {[%clk 0:01:37.8]} 32.
axb5 {[%clk 0:01:15.7]} 32... Bxb5 {[%clk 0:01:36.3]} 33. Bxb5 {[%clk
0:01:09.5]} 33... axb5 {[%clk 0:01:38.2]} 34. Ke2 {[%clk 0:01:08.9]} 34... Ke7
{[%clk 0:01:39.6]} 35. Kd2 {[%clk 0:01:09.6]} 35... Kd7 {[%clk 0:01:41]} 36. Ke2
{[%clk 0:01:05]} 36... Kc6 {[%clk 0:01:39.9]} 37. Kd2 {[%clk 0:00:59.9]} 37...
Bb4+ {[%clk 0:01:40.8]} 38. Ke2 {[%clk 0:01:00.6]} 38... Bc5 {[%clk 0:01:37.9]}
39. Bb2 {[%clk 0:00:59.4]} 39... Kd5 {[%clk 0:01:35.8]} 40. Bc3 {[%clk
0:00:59.3]} 40... Bd6 {[%clk 0:01:32.8]} 41. Bd4 {[%clk 0:00:57.8]} 41... Bb4
{[%clk 0:01:28.1]} 42. Bb6 {[%clk 0:00:55.5]} 42... Bc3 {[%clk 0:01:28.1]} 43.
Bd8 {[%clk 0:00:56.1]} 43... Kd6 {[%clk 0:01:19.8]} 44. Bb6 {[%clk 0:00:56.6]}
44... Kc6 {[%clk 0:01:18.8]} 45. Bd8 {[%clk 0:00:55]} 45... Bb4 {[%clk
0:01:19.6]} 46. Kf2 {[%clk 0:00:45.7]} 46... Bc5 {[%clk 0:01:03.5]} 47. Ke2
{[%clk 0:00:45.1]} 47... b4 {[%clk 0:01:00.4]} 48. Kf2 {[%clk 0:00:44.9]} 48...
Kd7 {[%clk 0:00:58.4]} 49. Ba5 {[%clk 0:00:45.2]} 49... Kd6 {[%clk 0:00:56.8]}
50. Ke2 {[%clk 0:00:44.5]} 50... Kc6 {[%clk 0:00:58.1]} 51. Bd8 {[%clk
0:00:45.2]} 51... Bd6 {[%clk 0:00:54.3]} 52. Ba5 {[%clk 0:00:45.1]} 52... Be7
{[%clk 0:00:52.2]} 53. Kf2 {[%clk 0:00:45.7]} 53... Bc5 {[%clk 0:00:51.1]} 54.
Ke2 {[%clk 0:00:45.6]} 54... Kd7 {[%clk 0:00:51.7]} 55. Kf2 {[%clk 0:00:46]}
1/2-1/2

[Event "*** Biggest EVER Titled Tuesday"]
[Site "Chess.com"]
[Date "2018.04.17"]
[Round "3"]
[White "Safar_From_Afar"]
[Black "Cocaino74"]
[Result "1-0"]
[WhiteElo "2268"]
[BlackElo "2136"]
[TimeControl "180+2"]
[EndTime "13:35:49 PDT"]
[Termination "Safar_From_Afar won by resignation"]

1. e4 {[%clk 0:03:00.9]} 1... c5 {[%clk 0:02:59.6]} 2. Nc3 {[%clk 0:03:00.5]}
2... Nc6 {[%clk 0:03:00.7]} 3. Nf3 {[%clk 0:03:01.6]} 3... g6 {[%clk 0:03:01.5]}
4. d4 {[%clk 0:03:01]} 4... cxd4 {[%clk 0:03:03.4]} 5. Nxd4 {[%clk 0:03:01.9]}
5... Bg7 {[%clk 0:03:04.8]} 6. Be3 {[%clk 0:03:03]} 6... Nf6 {[%clk 0:03:06.1]}
7. Bc4 {[%clk 0:03:03.9]} 7... O-O {[%clk 0:03:07.5]} 8. Bb3 {[%clk 0:03:04.2]}
8... Re8 {[%clk 0:03:05.6]} 9. O-O {[%clk 0:02:43.2]} 9... d6 {[%clk 0:02:54.2]}
10. h3 {[%clk 0:02:43.9]} 10... Na5 {[%clk 0:02:54.8]} 11. Qc1 {[%clk
0:02:37.6]} 11... b6 {[%clk 0:02:52]} 12. Rd1 {[%clk 0:02:33.9]} 12... Bb7
{[%clk 0:02:53.1]} 13. Ba4 {[%clk 0:02:30]} 13... Rf8 {[%clk 0:02:04.6]} 14. e5
{[%clk 0:02:30]} 14... Nd5 {[%clk 0:02:00.2]} 15. Nxd5 {[%clk 0:02:06.2]} 15...
Bxd5 {[%clk 0:02:02.1]} 16. Bh6 {[%clk 0:02:07.6]} 16... Bxe5 {[%clk 0:01:26.1]}
17. b4 {[%clk 0:01:51.6]} 17... Nc4 {[%clk 0:01:17.6]} 18. Bc6 {[%clk
0:01:52.1]} 18... Bxc6 {[%clk 0:00:35.4]} 19. Nxc6 {[%clk 0:01:51.8]} 19... Qc7
{[%clk 0:00:37]} 20. Nxe5 {[%clk 0:01:47.6]} 20... Nxe5 {[%clk 0:00:38.9]} 21.
Qb2 {[%clk 0:01:42.3]} 21... f6 {[%clk 0:00:09.2]} 22. Bxf8 {[%clk 0:01:40.7]}
22... Rxf8 {[%clk 0:00:11.1]} 23. Qd4 {[%clk 0:01:19.8]} 23... Qxc2 {[%clk
0:00:06]} 24. Qd5+ {[%clk 0:01:12.5]} 24... Kg7 {[%clk 0:00:06.4]} 25. Rac1
{[%clk 0:01:12.5]} 25... Qf5 {[%clk 0:00:05.5]} 26. Rc7 {[%clk 0:01:10.6]} 26...
Rf7 {[%clk 0:00:04.9]} 27. Rxa7 {[%clk 0:01:11.8]} 27... Qc2 {[%clk 0:00:04.3]}
28. Qd2 {[%clk 0:01:09.7]} 28... Qc4 {[%clk 0:00:04]} 29. Rc1 {[%clk 0:01:08.7]}
29... Qe4 {[%clk 0:00:04.1]} 30. f3 {[%clk 0:01:06.7]} 30... Qf5 {[%clk
0:00:03.3]} 31. Rcc7 {[%clk 0:01:07.4]} 31... Qxf3 {[%clk 0:00:04]} 32. Rxe7
{[%clk 0:01:02.9]} 32... Qe4 {[%clk 0:00:02.8]} 33. Rxf7+ {[%clk 0:01:00.4]}
33... Nxf7 {[%clk 0:00:04.7]} 34. Qxd6 {[%clk 0:00:56.3]} 34... b5 {[%clk
0:00:05.6]} 35. Qe7 {[%clk 0:00:52.9]} 35... Qd4+ {[%clk 0:00:06]} 36. Kh1
{[%clk 0:00:53.4]} 36... Qd5 {[%clk 0:00:07.1]} 37. a4 {[%clk 0:00:29.5]} 37...
Qc4 {[%clk 0:00:08]} 38. Qxf7+ {[%clk 0:00:27]} 38... Qxf7 {[%clk 0:00:08.1]}
39. Rxf7+ {[%clk 0:00:27.7]} 39... Kxf7 {[%clk 0:00:10]} 40. a5 {[%clk
0:00:25.2]} 40... Ke6 {[%clk 0:00:10.7]} 41. a6 {[%clk 0:00:24.1]} 41... Kd7
{[%clk 0:00:11.7]} 42. a7 {[%clk 0:00:25]} 42... Kc7 {[%clk 0:00:12.6]} 43. a8=Q
{[%clk 0:00:26.1]} 1-0

[Event "*** Biggest EVER Titled Tuesday"]
[Site "Chess.com"]
[Date "2018.04.17"]
[Round "3"]
[White "Korchmar_Vasiliy"]
[Black "Sebastian"]
[Result "1-0"]
[WhiteElo "2683"]
[BlackElo "2784"]
[TimeControl "180+2"]
[EndTime "13:35:50 PDT"]
[Termination "Korchmar_Vasiliy won on time"]

1. d4 {[%clk 0:03:00.7]} 1... Nf6 {[%clk 0:03:00.6]} 2. Nf3 {[%clk 0:03:02]}
2... d5 {[%clk 0:02:58.8]} 3. Bf4 {[%clk 0:03:03]} 3... e6 {[%clk 0:02:59.5]} 4.
e3 {[%clk 0:03:04.3]} 4... Bd6 {[%clk 0:03:01]} 5. Nbd2 {[%clk 0:03:05.2]} 5...
O-O {[%clk 0:02:59.9]} 6. c3 {[%clk 0:03:03.5]} 6... Bxf4 {[%clk 0:02:58]} 7.
exf4 {[%clk 0:03:04.3]} 7... b6 {[%clk 0:02:59.5]} 8. a4 {[%clk 0:03:03.8]} 8...
a5 {[%clk 0:02:49.9]} 9. Bd3 {[%clk 0:03:01.4]} 9... Ba6 {[%clk 0:02:49.6]} 10.
Bxa6 {[%clk 0:03:02.3]} 10... Rxa6 {[%clk 0:02:46.2]} 11. O-O {[%clk 0:03:04.2]}
11... c5 {[%clk 0:02:44.5]} 12. Qe2 {[%clk 0:03:01.9]} 12... Ra7 {[%clk
0:02:41.8]} 13. g3 {[%clk 0:02:54.4]} 13... Nc6 {[%clk 0:02:32.1]} 14. Qb5
{[%clk 0:02:42.6]} 14... Qc7 {[%clk 0:02:16.2]} 15. dxc5 {[%clk 0:02:42.4]}
15... Rb8 {[%clk 0:02:12.8]} 16. b3 {[%clk 0:02:19.4]} 16... Nd7 {[%clk
0:02:07]} 17. cxb6 {[%clk 0:02:12.6]} 17... Rxb6 {[%clk 0:02:08.9]} 18. Qe2
{[%clk 0:02:09.9]} 18... g6 {[%clk 0:02:02.1]} 19. Rac1 {[%clk 0:02:10.3]} 19...
Nc5 {[%clk 0:01:59.2]} 20. b4 {[%clk 0:01:45.5]} 20... Nxa4 {[%clk 0:01:52.9]}
21. c4 {[%clk 0:01:37.8]} 21... axb4 {[%clk 0:01:38.3]} 22. cxd5 {[%clk
0:01:38.2]} 22... Nc3 {[%clk 0:01:36.5]} 23. Rxc3 {[%clk 0:01:24]} 23... bxc3
{[%clk 0:01:36.7]} 24. Nc4 {[%clk 0:01:25.3]} 24... exd5 {[%clk 0:01:17.7]} 25.
Nxb6 {[%clk 0:01:26.4]} 25... Qxb6 {[%clk 0:01:18.1]} 26. Qe8+ {[%clk
0:01:27.7]} 26... Kg7 {[%clk 0:01:19.3]} 27. Ne5 {[%clk 0:01:29.2]} 27... Nxe5
{[%clk 0:00:51.5]} 28. Qxe5+ {[%clk 0:01:31.1]} 28... Qf6 {[%clk 0:00:51.7]} 29.
Qxd5 {[%clk 0:01:31.5]} 29... Rc7 {[%clk 0:00:53]} 30. Rc1 {[%clk 0:01:29.1]}
30... c2 {[%clk 0:00:53.4]} 31. Qe5 {[%clk 0:01:26.5]} 31... Qxe5 {[%clk
0:00:50]} 32. fxe5 {[%clk 0:01:28.4]} 32... g5 {[%clk 0:00:51.5]} 33. Kf1 {[%clk
0:01:18.1]} 33... Kg6 {[%clk 0:00:17.6]} 34. g4 {[%clk 0:01:10.9]} 34... h5
{[%clk 0:00:16.6]} 35. h3 {[%clk 0:01:11.9]} 35... Rc3 {[%clk 0:00:11.5]} 36.
Ke2 {[%clk 0:01:05.5]} 36... h4 {[%clk 0:00:12.7]} 37. Kd2 {[%clk 0:00:52.8]}
37... Rxh3 {[%clk 0:00:13.4]} 38. Rxc2 {[%clk 0:00:54.4]} 38... Rb3 {[%clk
0:00:11]} 39. Rc6+ {[%clk 0:00:51]} 39... Kg7 {[%clk 0:00:12]} 40. e6 {[%clk
0:00:45.5]} 40... fxe6 {[%clk 0:00:04.9]} 41. Rxe6 {[%clk 0:00:46.5]} 41... Rb4
{[%clk 0:00:03.6]} 42. f3 {[%clk 0:00:43.9]} 42... h3 {[%clk 0:00:04.2]} 43.
Re7+ {[%clk 0:00:38.6]} 1-0

[Event "*** Biggest EVER Titled Tuesday"]
[Site "Chess.com"]
[Date "2018.04.17"]
[Round "3"]
[White "Journey_to_GrandMaster_YT"]
[Black "carlesdc96"]
[Result "1/2-1/2"]
[WhiteElo "2383"]
[BlackElo "2463"]
[TimeControl "180+2"]
[EndTime "13:35:52 PDT"]
[Termination "Game drawn by agreement"]

1. d4 {[%clk 0:03:01.9]} 1... e6 {[%clk 0:03:00.8]} 2. Nf3 {[%clk 0:03:02.9]}
2... Nf6 {[%clk 0:02:59.7]} 3. c4 {[%clk 0:03:03.4]} 3... d5 {[%clk 0:03:00]} 4.
Nc3 {[%clk 0:03:04]} 4... Be7 {[%clk 0:03:00.9]} 5. Bg5 {[%clk 0:03:04.4]} 5...
O-O {[%clk 0:03:01.3]} 6. e3 {[%clk 0:03:05.3]} 6... Nbd7 {[%clk 0:03:02]} 7.
Qc2 {[%clk 0:03:05.8]} 7... h6 {[%clk 0:03:01]} 8. Bh4 {[%clk 0:03:06.2]} 8...
c5 {[%clk 0:02:59.6]} 9. cxd5 {[%clk 0:03:06.6]} 9... Nxd5 {[%clk 0:02:59.6]}
10. Bxe7 {[%clk 0:03:06.8]} 10... Qxe7 {[%clk 0:03:00.9]} 11. Nxd5 {[%clk
0:03:03.7]} 11... exd5 {[%clk 0:03:02.8]} 12. Bd3 {[%clk 0:03:03.4]} 12... c4
{[%clk 0:02:59.9]} 13. Bf5 {[%clk 0:03:00.5]} 13... Nf6 {[%clk 0:03:00.2]} 14.
O-O {[%clk 0:02:57.9]} 14... g6 {[%clk 0:02:55.2]} 15. Bxc8 {[%clk 0:02:55.9]}
15... Raxc8 {[%clk 0:02:57.1]} 16. Ne5 {[%clk 0:02:56.9]} 16... Kg7 {[%clk
0:02:57.7]} 17. b3 {[%clk 0:02:42.7]} 17... Nd7 {[%clk 0:02:47.1]} 18. f4 {[%clk
0:02:18.2]} 18... Nf6 {[%clk 0:02:41.6]} 19. bxc4 {[%clk 0:02:16]} 19... dxc4
{[%clk 0:02:38.4]} 20. f5 {[%clk 0:02:00.1]} 20... g5 {[%clk 0:02:34.7]} 21.
Rab1 {[%clk 0:01:48.9]} 21... Nd5 {[%clk 0:02:19.1]} 22. Rf3 {[%clk 0:01:48.5]}
22... Rfe8 {[%clk 0:02:14.2]} 23. f6+ {[%clk 0:01:27.2]} 23... Nxf6 {[%clk
0:02:13.7]} 24. Rbf1 {[%clk 0:01:26.8]} 24... Rc7 {[%clk 0:01:54.9]} 25. Rxf6
{[%clk 0:01:26.1]} 25... Qxf6 {[%clk 0:01:55.6]} 26. Rxf6 {[%clk 0:01:26.4]}
26... Kxf6 {[%clk 0:01:57.5]} 27. Nxc4 {[%clk 0:01:16.9]} 27... Rec8 {[%clk
0:01:53.3]} 28. Qf2+ {[%clk 0:01:16.5]} 28... Kg7 {[%clk 0:01:54.1]} 29. Nd2
{[%clk 0:01:08.3]} 29... Rc1+ {[%clk 0:01:52.8]} 30. Nf1 {[%clk 0:01:09.1]}
30... Rb1 {[%clk 0:01:49.1]} 31. h4 {[%clk 0:00:35.1]} 31... Rcc1 {[%clk
0:01:48.7]} 32. hxg5 {[%clk 0:00:19.7]} 32... hxg5 {[%clk 0:01:50.6]} 33. e4
{[%clk 0:00:15.2]} 33... Rxf1+ {[%clk 0:01:24.8]} 34. Qxf1 {[%clk 0:00:16.3]}
34... Rxf1+ {[%clk 0:01:26.7]} 35. Kxf1 {[%clk 0:00:18.2]} 35... Kf6 {[%clk
0:01:28.1]} 36. Ke2 {[%clk 0:00:17.4]} 36... Ke6 {[%clk 0:01:29]} 37. g4 {[%clk
0:00:16.7]} 37... Kd6 {[%clk 0:01:27.5]} 38. Kd3 {[%clk 0:00:17.6]} 38... b5
{[%clk 0:01:27.5]} 39. Kc3 {[%clk 0:00:16.1]} 39... a5 {[%clk 0:01:28.4]} 40. a3
{[%clk 0:00:17]} 40... f6 {[%clk 0:01:28.1]} 41. Kb3 {[%clk 0:00:16.6]} 41...
Kc6 {[%clk 0:01:20.8]} 42. Kc3 {[%clk 0:00:17.5]} 42... Kd6 {[%clk 0:01:19.2]}
43. Kd3 {[%clk 0:00:17.8]} 43... Ke6 {[%clk 0:01:18.9]} 44. Kc3 {[%clk
0:00:18.9]} 44... Kd6 {[%clk 0:01:16.4]} 45. a4 {[%clk 0:00:20.2]} 45... b4+
{[%clk 0:01:15.7]} 46. Kc4 {[%clk 0:00:21]} 46... Kc6 {[%clk 0:01:15.5]} 47. Kb3
{[%clk 0:00:19.9]} 47... Kd6 {[%clk 0:01:14.6]} 48. Kc4 {[%clk 0:00:20.9]} 48...
Kc6 {[%clk 0:01:15.8]} 49. Kd3 {[%clk 0:00:15.9]} 49... Kd7 {[%clk 0:01:16.3]}
50. Kc4 {[%clk 0:00:14.1]} 50... Kc7 {[%clk 0:01:15.6]} 51. Kb3 {[%clk
0:00:12.6]} 51... Kd6 {[%clk 0:01:16]} 52. Kc4 {[%clk 0:00:13.7]} 52... Kc6
{[%clk 0:01:17]} 53. Kd3 {[%clk 0:00:14.7]} 53... Kd6 {[%clk 0:01:17.9]} 54. Kc4
{[%clk 0:00:16.2]} 54... Kc6 {[%clk 0:01:19]} 55. Kb3 {[%clk 0:00:17.3]} 1/2-1/2

[Event "*** Biggest EVER Titled Tuesday"]
[Site "Chess.com"]
[Date "2018.04.17"]
[Round "3"]
[White "Justmig"]
[Black "Tesla37"]
[Result "0-1"]
[WhiteElo "2522"]
[BlackElo "2585"]
[TimeControl "180+2"]
[EndTime "13:35:58 PDT"]
[Termination "Tesla37 won on time"]

1. e4 {[%clk 0:03:01.9]} 1... c5 {[%clk 0:02:59.8]} 2. Nf3 {[%clk 0:03:01.6]}
2... e6 {[%clk 0:03:01.3]} 3. d4 {[%clk 0:02:53.4]} 3... cxd4 {[%clk 0:03:01.7]}
4. Bg5 {[%clk 0:02:54.6]} 4... Qa5+ {[%clk 0:02:50.7]} 5. c3 {[%clk 0:02:54.8]}
5... Nc6 {[%clk 0:02:50.5]} 6. b4 {[%clk 0:02:53.8]} 6... Qc7 {[%clk 0:02:47.3]}
7. b5 {[%clk 0:02:54.2]} 7... Ne5 {[%clk 0:02:44.8]} 8. cxd4 {[%clk 0:02:55.2]}
8... Nxf3+ {[%clk 0:02:36.4]} 9. gxf3 {[%clk 0:02:57.1]} 9... Be7 {[%clk
0:02:33.9]} 10. Bxe7 {[%clk 0:02:55]} 10... Nxe7 {[%clk 0:02:34.1]} 11. Nd2
{[%clk 0:02:56.9]} 11... O-O {[%clk 0:02:33.9]} 12. Bd3 {[%clk 0:02:55.8]} 12...
Ng6 {[%clk 0:02:34.1]} 13. Rc1 {[%clk 0:02:29.2]} 13... Qb6 {[%clk 0:02:28.7]}
14. Nb3 {[%clk 0:02:28.6]} 14... e5 {[%clk 0:02:26.6]} 15. dxe5 {[%clk 0:02:28]}
15... Nxe5 {[%clk 0:02:24.4]} 16. f4 {[%clk 0:02:28.2]} 16... Ng6 {[%clk
0:02:05.8]} 17. f5 {[%clk 0:02:29.3]} 17... Ne5 {[%clk 0:02:05.1]} 18. Be2
{[%clk 0:02:19.6]} 18... Qh6 {[%clk 0:01:54.1]} 19. Qd2 {[%clk 0:02:17.5]} 19...
Qh4 {[%clk 0:01:53.1]} 20. O-O {[%clk 0:01:55.1]} 20... d6 {[%clk 0:01:43]} 21.
f4 {[%clk 0:01:47.6]} 21... Ng4 {[%clk 0:01:27]} 22. Bxg4 {[%clk 0:01:45.8]}
22... Qxg4+ {[%clk 0:01:28.3]} 23. Kh1 {[%clk 0:01:41.7]} 23... b6 {[%clk
0:01:24.2]} 24. Qe3 {[%clk 0:01:38.8]} 24... Bb7 {[%clk 0:01:22.5]} 25. Nd4
{[%clk 0:01:36.7]} 25... Rae8 {[%clk 0:01:20]} 26. Rc6 {[%clk 0:01:30.3]} 26...
Bxc6 {[%clk 0:01:18.1]} 27. bxc6 {[%clk 0:01:32.2]} 27... Qh4 {[%clk 0:01:13.6]}
28. Rg1 {[%clk 0:01:29.7]} 28... Qe7 {[%clk 0:01:08.4]} 29. Re1 {[%clk
0:00:45.8]} 29... g6 {[%clk 0:01:08.6]} 30. Qc3 {[%clk 0:00:34.7]} 30... Qf6
{[%clk 0:01:00.1]} 31. c7 {[%clk 0:00:32.9]} 31... Rc8 {[%clk 0:00:58.7]} 32. e5
{[%clk 0:00:31.4]} 32... dxe5 {[%clk 0:00:55.4]} 33. fxe5 {[%clk 0:00:33.3]}
33... Qh4 {[%clk 0:00:55.9]} 34. Rc1 {[%clk 0:00:18.9]} 34... Qf4 {[%clk
0:00:54.4]} 35. Kg1 {[%clk 0:00:20.4]} 35... Qxe5 {[%clk 0:00:54.5]} 36. Nc6
{[%clk 0:00:06]} 36... Qxc7 {[%clk 0:00:40.8]} 37. Qf6 {[%clk 0:00:04.2]} 37...
Rfe8 {[%clk 0:00:33.4]} 38. Ne7+ {[%clk 0:00:02.5]} 38... Qxe7 {[%clk
0:00:32.6]} 39. Qxe7 {[%clk 0:00:02.9]} 39... Rxc1+ {[%clk 0:00:32.8]} 40. Qe1
{[%clk 0:00:03.6]} 40... Rexe1+ {[%clk 0:00:32.2]} 0-1